Cogmind - Beta 15 @@@ ROGUE MODE // 2025.07.05 @ 22:05:06 Player: CSF Result: Destroyed by B4-OOB(R) with Subdweller Machine Gun Performance ------------- Evolutions (0) 0 Regions Visited (2) 400 Robots Destroyed (53) 265 Value Destroyed (889) 889 Prototype IDs (0) 0 Alien Tech Used (0) 0 Bonus (0) 0 TOTAL SCORE: 1554 Bonus ------- None Cogmind --------- Core Integrity 0/250 Matter 85/300 Energy 196/200 System Corruption 1% Temperature Cool (0) Movement Rolling (175) Ox5 Location -10/Subcaves Parts ------- > --- POWER (1) -------- Subdweller Power Source > --- PROPULSION (2) --- Compact Wheel > --- UTILITY (2) ------ Huge Storage Unit > --- WEAPON (2) ------- EM Pulse Gun Battle Cannon > --- INVENTORY (25) --- Wheel Flight Unit Flight Unit Makeshift Flight Unit Small Storage Unit Medium Storage Unit Hacking Suite Medium Laser Small Laser Subdweller Shrapnel Launcher Mining Laser Peak State ------------ > --- POWER ------------ Light Ion Engine > --- PROPULSION ------- Light Treads Wheel > --- UTILITY ---------- Huge Storage Unit Structural Scanner > --- WEAPON ----------- Medium Laser Assault Rifle > --- INVENTORY -------- Ion Engine Ion Engine Light Treads Light Treads Wheel Wheel Wheel Compact Wheel Flight Unit Flight Unit Small Storage Unit Medium Storage Unit Structural Scanner Visual Processing Unit Visual Processing Unit Terrain Scanner Backup Plating I Scrap Shield Hacking Suite EM Pulse Gun Medium Laser Small Laser Light Assault Rifle Mining Laser [Rating: 10] Favorites ----------- Power Light Ion Engine Engine Light Ion Engine Propulsion Compact Wheel Treads Light Treads Leg Aluminum Leg Wheel Compact Wheel Utility Huge Storage Unit Device Structural Scanner Storage Huge Storage Unit Protection Backup Plating I Weapon Light Assault Rifle Energy Gun Medium Laser Ballistic Gun Light Assault Rifle Ballistic Cannon Battle Cannon Special Weapon Mining Laser Build | -11 -10 -10 ------- Run | Yrd Mat Sub Slots Evolved . | . . . Power . | . . . Propulsion . | . . . Utility . | . . . Weapon . | . . . Parts Attached 42 | 5 29 8 Power 6 | . 3 3 Engine 6 | . 3 3 Core . | . . . Reactor . | . . . Propulsion 16 | 4 10 2 Treads 5 | . 4 1 Leg 5 | 2 3 . Wheel 6 | 2 3 1 Hover . | . . . Flight . | . . . Utility 8 | 1 5 2 Device 5 | 1 3 1 Storage 2 | . 2 . Processor . | . . . Hackware . | . . . Protection 1 | . . 1 Artifact . | . . . Weapon 12 | . 11 1 Energy Gun 5 | . 5 . Energy Cannon . | . . . Ballistic Gun 5 | . 5 . Ballistic Cannon 1 | . . 1 Launcher . | . . . Special Weapon 1 | . 1 . Impact Weapon . | . . . Slashing Weapon . | . . . Piercing Weapon . | . . . Special Melee Weapon . | . . . Unidentified Prototypes . | . . . Parts Lost 13 | . 1 12 Power 2 | . . 2 Propulsion 5 | . . 5 Utility 3 | . 1 2 Weapon 3 | . . 3 Highest Loss Streak 11 | . 1 11 To Critical Strikes . | . . . Average Backups 14 | 7 14 16 Power 1 | 1 1 1 Propulsion 6 | 4 6 5 Utility 3 | . 3 4 Weapon 3 | 1 3 4 Tool/Special . | . . . Unused Backups 21 | 4 4 13 Power 2 | 1 1 . Propulsion 6 | . 1 5 Utility 8 | 1 1 6 Weapon 5 | 2 1 2 Tool/Special . | . . . Average Slot Usage (%) 98 | . 98 94 Engine 13 | . 13 13 Treads 6 | . 5 14 Leg 6 | . 7 . Wheel 14 | . 15 11 Device 11 | . 11 11 Storage 15 | . 15 14 Energy Gun 12 | . 11 13 Ballistic Gun 15 | . 15 12 Peak Build Rating 10 | 7 9 10 Average Rating 8 | 6 8 8 On Entrance 7 | 6 7 9 Naked Turns . | . . . Heaviest Build 90 | 14 88 90 Greatest Support 40 | 20 40 40 Greatest Overweight (x) 8 | . 5 8 Average Overweight (x) 1 | . 1 7 Largest Inventory Capacity 25 | 8 25 25 Average Capacity 18 | 8 17 24 Most Carried 25 | 8 24 25 Average Carried 14 | 7 14 16 Final Capacity 25 | 8 25 25 Final Carried 24 | 8 24 11 Class Distribution -------------------- 52% | Mutant 47% | Scavenger-Mutant Dominant Class ---------------- Scavenger-Mutant | -10/Materials Mutant | -10/Subcaves Resources | -11 -10 -10 ----------- Run | Yrd Mat Sub Matter Collected 1158 | 277 766 115 Remotely 122 | 56 66 . Salvage Created 1561 | 122 1240 199 Parts 121 | 9 100 12 Haulers Intercepted 2 | . 2 . Recyclers Shooed 4 | 1 3 . Parts Field Recycled . | . . . Retrieved Matter . | . . . Parts Self-Destructed . | . . . Prevented . | . . . Kills | -11 -10 -10 ------- Run | Yrd Mat Sub Combat Hostiles Destroyed 24 | . 20 4 Guns 24 | . 20 4 Classes Destroyed 10 | 3 6 1 Worker 7 | 2 5 . Builder 9 | . 9 . Tunneler 3 | 1 2 . Hauler 2 | . 2 . Recycler 3 | 1 2 . Operator 2 | . 2 . Watcher 3 | . 3 . Swarmer 8 | . 8 . Grunt 12 | . 12 . Subdweller 4 | . . 4 Best Kill Streak 7 | 2 7 2 Combat Bots Only 6 | . 6 2 Max Kills in Single Turn 2 | 1 2 1 Gunslinging 1 | . 1 . Exploded . | . . . Melee . | . . . Uniques/NPCs Destroyed . | . . . Combat | -11 -10 -10 -------- Run | Yrd Mat Sub Hostile Shots Fired 181 | . 103 78 Missed 46 | . 24 22 Hits 135 | . 79 56 Projectile 135 | . 79 56 Critical Strikes 3 | . 1 2 Damage Taken 2215 | . 1023 1192 Core 257 | . 102 155 Absorbed by Shields . | . . . Core Remaining (%) 100 | 100 . . Volleys Fired 240 | 9 217 14 Largest 2 | 2 2 2 Hottest 100 | 60 100 73 Shots Fired 471 | 18 426 27 Gun 468 | 18 425 25 Cannon 2 | . . 2 Launcher . | . . . Special 1 | . 1 . Kinetic 283 | 9 261 13 Thermal 159 | 9 144 6 Explosive . | . . . Electromagnetic 29 | . 21 8 Robot Hit Streak 18 | 2 16 18 Robot Miss Streak 9 | 3 9 1 Penetration Max . | . . . Secondary Targets 4 | . 4 . Max Gunslinging Chain 1 | . 1 . Shots Hit Robots 204 | 7 172 25 Core Hits 87 | 5 74 8 Critical Kills 1 | . 1 . Critical Parts Destroyed 1 | . 1 . Critical Strikes 6 | . 5 1 Burn 4 | . 3 1 Destroy 2 | . 2 . Melee Attacks . | . . . Impact . | . . . Slashing . | . . . Piercing . | . . . Sneak Attacks . | . . . Combat Hostiles . | . . . Follow-up Attacks . | . . . Damage Inflicted 2435 | 89 2031 315 Guns 2124 | 89 1741 294 Cannons 21 | . . 21 Explosions 290 | . 290 . Melee . | . . . Ramming . | . . . Kinetic 1176 | 55 971 150 Thermal 1059 | 34 949 76 Explosive 111 | . 111 . Electromagnetic 89 | . . 89 Impact . | . . . Slashing . | . . . Piercing . | . . . Highest Corruption 1 | . 1 1 Average Corruption 1 | . 1 1 Corruption Purged . | . . . Corruption Blocked . | . . . Effects 19 | . 15 4 Message Errors 7 | . 7 . Matter Fused 2 | . 2 . Heat Flow Errors 3 | . 2 1 Energy Discharges 1 | . . 1 Parts Rejected 1 | . 1 . Data Loss (minor) 2 | . 1 1 Data Loss (major) 1 | . . 1 Weapon Failures 2 | . 2 . Overload Shots . | . . . Overflow Damage 125 | . 125 . Projectiles . | . . . Explosions 125 | . 125 . Melee . | . . . Knockbacks . | . . . Impact . | . . . Kinetic . | . . . Secondary . | . . . Self-Inflicted Damage 154 | . 154 . Shots 2 | . 2 . Rammed . | . . . Targets Rammed . | . . . Kicked . | . . . Crushed . | . . . Highest Temperature 226 | . 226 196 Average Temperature 42 | . 41 96 Received Heat Transfer 507 | . 381 126 Siege Activations . | . . . Martial Activations . | . . . Shielding Activations . | . . . Robots Disrupted . | . . . Combat Hostiles . | . . . Robots Corrupted . | . . . Combat Hostiles . | . . . Parts Fried . | . . . Impact Corruptions . | . . . Robots Melted . | . . . Combat Hostiles . | . . . Parts Melted 2 | . 2 . Heat Transferred 2654 | 75 2283 296 Parts Sabotaged . | . . . Parts Stolen . | . . . Parts Stripped . | . . . Power Chain Reactions . | . . . Alert | -11 -10 -10 ------- Run | Yrd Mat Sub Maximum Alert Level 1 | . 1 . Low Security (%) 89 | 100 89 . Level 1 10 | . 10 . Level 2 . | . . . Level 3 . | . . . Level 4 . | . . . Level 5 . | . . . High Security . | . . . Max Security . | . . . Peak Influence 225 | 10 225 . Initial 6 | . 6 . Average 138 | 2 145 . Influence Increases 749 | 20 729 . Destroy 0b10 Robot/C 400 | . 400 . Destroy 0b10 Robot/NC 145 | 20 125 . Destroy Leader 90 | . 90 . Successful Hack 22 | . 22 . Disable Machine 60 | . 60 . Destroy Structure 17 | . 17 . Lose Combat Pursuer 15 | . 15 . Influence Decreases 749 | 10 630 109 Entered New Map 57 | . 4 53 Time Decay 672 | 10 616 46 Lost Part 20 | . 10 10 Squads Dispatched 4 | . 4 . Investigation 2 | . 2 . Extermination . | . . . Reinforcement 2 | . 2 . Assault . | . . . Garrison . | . . . Intercept . | . . . Searches Triggered . | . . . Construction Impeded . | . . . Haulers Reinforced . | . . . Active Scanning Responses . | . . . Cargo Convoy Interrupts . | . . . Stealth | -11 -10 -10 --------- Run | Yrd Mat Sub Distress Signals 2 | . 2 . Communications Jammed . | . . . Distress Signals . | . . . Times Spotted 51 | . 38 13 Peak Tracking Total 10 | . 4 10 Tactical Retreats 1 | . 1 . Traps | -11 -10 -10 ------- Run | Yrd Mat Sub Traps Triggered 1 | . 1 . Indirectly . | . . . Trap Hack Attempts . | . . . Triggered . | . . . Disarmed . | . . . Reprogrammed . | . . . Reused . | . . . Traps Extracted . | . . . Installed . | . . . Triggered . | . . . Machines | -11 -10 -10 ---------- Run | Yrd Mat Sub Machines Disabled 4 | . 4 . Max in Single Turn 4 | . 4 . Machines Repaired . | . . . Machines Dismantled . | . . . Machines Sabotaged . | . . . Overloaded Fab Kills . | . . . Hacking | -11 -10 -10 --------- Run | Yrd Mat Sub Machines Accessed 7 | . 7 . Terminals 5 | . 5 . Fabricators . | . . . Repair Stations . | . . . Recycling Units 2 | . 2 . Scanalyzers . | . . . Garrison Access . | . . . Total Hacks 26 | . 26 . Successful 11 | . 11 . Failed 15 | . 15 . Catastrophic 3 | . 3 . Database Lockouts . | . . . Manual 14 | . 14 . Terminals 18 | . 18 . Fabricators . | . . . Repair Stations . | . . . Recycling Units 8 | . 8 . Scanalyzers . | . . . Garrison Access . | . . . Terminal Hacks 6 | . 6 . Record 1 | . 1 . Robot Analysis 1 | . 1 . Level Access Points 1 | . 1 . Branch Access Points 1 | . 1 . Locate Traps 1 | . 1 . Recall Reinforcements 1 | . 1 . Fabricator Hacks . | . . . Repair Station Hacks . | . . . Recycling Unit Hacks 5 | . 5 . Retrieve Matter 3 | . 3 . Retrieve Components 2 | . 2 . Scanalyzer . | . . . Garrison Access Hacks . | . . . Unauthorized Hacks . | . . . Terminals . | . . . Fabricators . | . . . Repair Stations . | . . . Recycling Units . | . . . Scanalyzers . | . . . Garrison Access . | . . . Data Cores Recovered . | . . . Used . | . . . Hacking Detections 7 | . 7 . Full Trace Events 2 | . 2 . Feedback Events . | . . . Feedback Blocked . | . . . Robot Schematics Acquired . | . . . Robots Built . | . . . Authchips . | . . . Time . | . . . Total Robot Build Rating . | . . . Part Schematics Acquired . | . . . Parts Built . | . . . Authchips . | . . . Time . | . . . Total Part Build Rating . | . . . Parts Repaired . | . . . Time . | . . . Parts Recycled . | . . . Recycled Matter . | . . . Retrieved Matter . | . . . Retrieved Components 9 | . 9 . Parts Scanalyzed . | . . . Part Schematics Acquired . | . . . Parts Damaged . | . . . Bothacking | -11 -10 -10 ------------ Run | Yrd Mat Sub Used RIF Installer . | . . . Robots Hacked . | . . . Non-combat . | . . . Combat . | . . . Robot Hacks Applied . | . . . Relay Couplers Released . | . . . Fabnet Peak Effective % . | . . . Robots Rewired . | . . . Allies Hacked . | . . . Hacks Repelled . | . . . Allies | -11 -10 -10 -------- Run | Yrd Mat Sub Total Allies . | . . . Largest Group . | . . . Highest-Rated Group . | . . . Highest-Rated Ally . | . . . Total Orders . | . . . Ally Attacks . | . . . Total Damage . | . . . Kills . | . . . Allies Corrupted . | . . . Allies Melted . | . . . Intel | -11 -10 -10 ------- Run | Yrd Mat Sub Active Infowar (turns) 2188 | . 1942 246 Structural 1188 | . 942 246 Seismic 1000 | . 1000 . Robot Analysis Total 1 | . 1 . Derelict Logs Recovered . | . . . Drone Launches . | . . . Drone Recoveries . | . . . Exploration | -11 -10 -10 ------------- Run | Yrd Mat Sub Turns Passed 2904 | 118 2488 298 Spaces Moved 1408 | 65 1244 99 Core . | . . . Treads 190 | . 185 5 Legs 324 | 63 261 . Wheels 894 | 2 798 94 Hover . | . . . Flight . | . . . Fastest Speed 80 | 80 100 80 Average Speed 141 | 118 137 200 Slowest Speed 480 | 120 190 480 Overloaded Moves . | . . . Propulsion Burnouts . | . . . Robots Hopped . | . . . Potential Cave-ins . | . . . Cave-ins Triggered . | . . . Exploration Rate (%) 36 | 4 98 6 Regions Visited 2 Branch Regions 1 Pre-discovered Areas . | . . . Known Exits Taken . | . . . Unknown Exits Taken 2 | 1 1 . Scrap Searched . | . . . Spaces Dug 1 | . 1 . Terrain Destroyed 18 | . 18 . Melee . | . . . Projectile 1 | . 1 . AOE 17 | . 17 . Terrain Rammed . | . . . Walls Destroyed . | . . . Machines Disabled . | . . . Actions | -11 -10 -10 --------- Run | Yrd Mat Sub Total 1880 | 88 1617 175 Wait 65 | . 57 8 Move 1406 | 64 1243 99 Hop . | . . . Pick Up 54 | 6 28 20 Fast Attach 16 | 1 13 2 Attach 19 | 2 7 10 Detach 2 | . 2 . Swap 32 | 2 21 9 Drop 46 | 4 29 13 Fire 240 | 9 217 14 Melee . | . . . Ram . | . . . Kick . | . . . Crush . | . . . Escape Stasis . | . . . Rewire . | . . . Trap . | . . . Miscellaneous . | . . . Route ------- -11/Scrapyard -10/Materials (discovered 6 exits: *Mat x3 / *Min x2 / [*Sub]) -10/Subcaves (discovered 1 exit: [*Mat]) History --------- Turn | Location | Event 1 | -11/Scrapyard | Discovered new exit (range 2) 119 | -11/Scrapyard | Entered Materials 206 | -10/Materials | Discovered new exit (range 12) 312 | -10/Materials | Build established: Mutant 806 | -10/Materials | Discovered new exit (range 11) 964 | -10/Materials | Discovered new exit (range 13) 1079 | -10/Materials | Identified exit to Mines 1079 | -10/Materials | Identified exit to Materials 1148 | -10/Materials | Build established: Scavenger-Mutant 2607 | -10/Materials | Entered Subcaves 2608 | -10/Subcaves | Approached by a straggling Scientist 2612 | -10/Subcaves | Discovered new exit (range 11) 2742 | -10/Subcaves | Build established: Mutant 2774 | -10/Subcaves | Shifting Twisted Machinery released Battle Cannon 2787 | -10/Subcaves | Shifting Twisted Machinery released Mak. Flight Unit 2835 | -10/Subcaves | Ambushed by swarm of Subdwellers 2835 | -10/Subcaves | Ambushed by Subdwellers from Twisted Machinery 2835 | -10/Subcaves | Ambushed by Subdwellers from Twisted Machinery 2835 | -10/Subcaves | Ambushed by Subdwellers from Twisted Machinery 2835 | -10/Subcaves | Ambushed by Subdwellers from Twisted Machinery 2852 | -10/Subcaves | Core integrity fell below 50% 2872 | -10/Subcaves | Core integrity fell below 20% 2891 | -10/Subcaves | Lost 5 allies 2905 | -10/Subcaves | Destroyed by B4-OOB(R) with Subdweller Machine Gun Last Messages --------------- 02858_ Lgt. Treads destroyed. 02860_ 7W-NOC(R) affixes Scrap Shield Fragment to Scrap Shield. 02860_ K6-0QL(g) destroyed. 02861_ Ion Engine destroyed. 02862_ DF-ZXN(R) affixes Scrap Shield Fragment to Scrap Shield. 02868_ Assault Rifle destroyed. 02868_ 7W-NOC(R) affixes Scrap Shield Fragment to Scrap Shield. 02869_ Med. Laser destroyed. 02872_ Lgt. Treads destroyed. 02874_ Ion Engine destroyed. 02876_ Structural Scanner destroyed. 02877_ DF-ZXN(R) suffers critical hit (Destroy). 02878_ Lgt. Treads destroyed. 02885_ DF-ZXN(R) destroyed. 02891_ HH-OKI(R) destroyed. 02895_ Lgt. Assault Rifle destroyed. 02903_ Backup Plating I destroyed. Map ----- +----------------------------------------------------+ | | | | | | | | | | | | | | | | | ?????????????????????????????????????????????????? | | ?????????????????????????????????????????????????? | | ?????????????????????????????????????????????????? | | ?????????????????????????????????????????????????? | | ?????????????????????????????????????????????????? | | ?????????????????????????????????????????????????? | | ?????????????????????????????????????????????????? | | ?????????????????????????????????????????????????? | | ?????????????????????????????????????????????????? | | ?????????????????????????????????????????????????? | | ?????????????????????????????????????????????????? | | ?????????????????????????????????????????????????? | | ?????????????????????????????????????????????????? | | ?????????????????????????????????????????????????? | | ??????????????????###????????????????????????????? | | ?????????????????####?? X###?????????????????????? | | ?????????????????### ####?????????????????????? | | ????? ????????### ####@##??### ????????????? | | ????# # ????????#### ##R#### ## ???????????? | | ???? # ???????### ### RR#### ????????????? | | ???? ##### ### !&R # ##??????????????? | | ?????? ######"" "" ##??????????????? | | ??????## ##" ##??????????????? | | ??????## ## =* &!!=## ??????????? | | ??????# ###"=!%! *[!%#### ??????????? | | ????????? ###"=%*! %* !#### #####??????????? | | ?????????## ##" * =%R=]%!##???#######??????????? | | ?????????## #" "";= %=&!##???####?????????????? | | ?????????### # ## % "##???????????????????? | | ??????????##"" # #### "###???????????????????? | | ?????? ?"### ######### ###???????????????????? | | ??????? """## #####?#######????????????????????? | | ??# ? ""#" ##?????#####????????????????????? | | ??## " """ ####?????????????????????????????? | | ??### ###?????????????????????????????? | | ???#### "" ##?????????????????????????????? | | ????#### ### """ ##?????????????????????????????? | | ?????###"#### " " ##?????????????????????????????? | | ??????###### """ ###?????????????????????????????? | | ??????##### "" ####?????????????????????????????? | | ?????????## "" ####??????????????????????????????? | | ?????????## " ###???????????????????????????????? | +----------------------------------------------------+ Best States ------------- Heat Dissipation 25 Energy Generation 15 Energy Capacity 250 Matter Stores 300 Matter Capacity 300 Sight Range 16 Terrain Scan Density 10 Armor Coverage 80 Evasion (%) 55 Recoil Reduction 2 Item Schematics ----------------- None Robot Schematics ------------------ None Fabricated ------------ Nothing Repaired ---------- Nothing Alien Tech Used ----------------- None Achievements -------------- Use The Force Challenges ------------ None Game ------ Seed BladeHypercooledRail Manual? 0 Play Time 00:37:51 Cumulative 8.6 hours Start 2025.07.05 @ 21:18:51 End 2025.07.05 @ 22:05:06 Sessions 1 Manual Loads 0 Difficulty Rogue Special Mode None Game No. 4 Rogue 4 Adventurer 0 Explorer 0 Win Type - Total 1 Types 1/0/0/0/0/0/0/0/0/0 Lore% 17 Gallery% 9 Achievement% 23 Wizard Run 0 Options --------- Layout 1 ASCII 0 Keyboard 0 Movement Mouse Keybinds 0 Fullscreen 1 Font 24/Smallcaps Map View 50x35 Zoom Use 0% Tactical HUD 1 Map Filters NONE Filters NONE Steam 1 RUN: 906ac344-fc88-4509-9886-dacedaafb47a